Cogmind - Beta 12 @@@ ROGUE MODE // 2023.03.29 @ 23:51:36 Player: ArabianSandBoa Result: Destroyed by Y-54 Guardian with Gatling Laser Performance ------------- Evolutions (4) 2000 Regions Visited (14) 2800 Robots Destroyed (228) 1140 Value Destroyed (14079) 14079 Prototype IDs (38) 760 Alien Tech Used (0) 0 Bonus (9689) 9689 TOTAL SCORE: 30468 Bonus ------- High Alert Combat Kills 3715 Follower Combat Kills 1977 Entered Garrisons 1000 Used RIF Installer 3000 Aligned with FarCom 300 Friendly Fire -303 Cogmind --------- Core Integrity 0/850 Matter 169/300 Energy 170/170 System Corruption 27% Temperature Cool (18) Movement Immobile (Siege) Ox2 Location -6/Garrison Parts ------- > --- POWER (1) -------- Light Antimatter Reactor > --- PROPULSION (4) --- Improved Heavy Treads > --- UTILITY (8) ------ Advanced Heat Sink Cargo Storage Unit Improved Target Analyzer Improved Target Analyzer Core Analyzer > --- WEAPON (2) ------- Heavy Mass Driver > --- INVENTORY (30) --- Fusion Compressor Superbattery (1500) Launcher Loader Relay Coupler [NC] (34) Relay Coupler [Cutter] (33) Relay Coupler [Brawler] (32) Relay Coupler [Duelist] (22) Relay Coupler [Sentry] (29) Relay Coupler [Demolisher] (25) Relay Coupler [Specialist] (25) Relay Coupler [Hunter] (19) Relay Coupler [Heavy] (13) Relay Coupler [Proto] (9) Relay Coupler [Proto] (9) Relay Coupler [Proto] (9) Relay Coupler [Proto] (9) Heavy Laser Heavy Laser Plasma Rifle PD Laser Heavy Mass Driver Remote Datajack Improved Plasma Cutter Peak State ------------ > --- POWER ------------ Neutrino Core > --- PROPULSION ------- Improved Heavy Treads Improved Heavy Treads > --- UTILITY ---------- Experimental Heat Sink Cargo Storage Unit 0b10 Alert Chip Weapon Mount Advanced Kinecellerator Improved Heavy Armor Plating > --- WEAPON ----------- Helical Railgun Helical Railgun > --- INVENTORY -------- Light Angular Momentum Engine Fusion Compressor Improved Heavy Treads Improved Cooling System Superbattery Launcher Loader Stasis Canceller Phase Shifter Relay Coupler [NC] Relay Coupler [Swarmer] Relay Coupler [Cutter] Relay Coupler [Brawler] Relay Coupler [Duelist] Relay Coupler [Sentry] Relay Coupler [Demolisher] Relay Coupler [Specialist] Relay Coupler [Hunter] Relay Coupler [Heavy] Relay Coupler [Proto] Relay Coupler [Proto] Relay Coupler [Proto] Relay Coupler [Proto] Firepult Antimatter Cannon Enhanced Gauss Cannon Long-range Missile Launcher Remote Datajack [Rating: 108] Favorites ----------- Power Light Nuclear Core Engine Reinforced Deuterium Engine Power Core Light Nuclear Core Reactor Light Quantum Reactor Propulsion Improved Heavy Treads Treads Improved Heavy Treads Leg Carbon-fiber Leg Wheel Armored Wheel Flight Unit Improved VTOL Module Utility Cargo Storage Unit Device Weapon Mount Storage Cargo Storage Unit Processor Core Analyzer Hackware Relay Coupler [Grunt] Protection Improved Heavy Armor Plating Weapon Gauss Rifle Energy Gun Heavy Laser Energy Cannon Firepult Ballistic Gun Gauss Rifle Ballistic Cannon Heavy Mass Driver Launcher Grenade Launcher Special Weapon Remote Datajack Impact Weapon Great Maul Build | -11 -10 -10 -10 -9 -8 -8 -7 -7 -6 -6 -6 -6 -6 -6 ------- Run | Jun Mat Min Exi Min Mat Gar Fac Gar Fac Gar Fac Gar Fac Gar Slots Evolved 8 | . . . . . 4 . 2 . 2 . . . . . Power . | . . . . . . . . . . . . . . . Propulsion 2 | . . . . . 2 . . . . . . . . . Utility 6 | . . . . . 2 . 2 . 2 . . . . . Weapon . | . . . . . . . . . . . . . . . Parts Attached 222 | . 5 1 . 1 53 33 5 45 6 10 7 47 3 6 Power 25 | . 1 . . . 7 5 . 5 . 3 1 1 1 1 Engine 11 | . 1 . . . 2 1 . 3 . 2 . 1 1 . Core 12 | . . . . . 5 4 . 1 . 1 1 . . . Reactor 2 | . . . . . . . . 1 . . . . . 1 Propulsion 60 | . 2 . . . 19 9 1 11 . 1 . 15 . 2 Treads 30 | . . . . . 14 1 1 3 . 1 . 8 . 2 Leg 7 | . . . . . . . . . . . . 7 . . Wheel 22 | . 2 . . . 4 8 . 8 . . . . . . Hover . | . . . . . . . . . . . . . . . Flight 1 | . . . . . 1 . . . . . . . . . Utility 57 | . 2 . . . 10 4 2 9 4 5 4 15 1 1 Device 24 | . . . . . 4 . . 3 1 2 3 10 . 1 Storage 3 | . 1 . . . 1 . . . . 1 . . . . Processor 10 | . . . . . 3 3 . . 1 . 1 1 1 . Hackware 6 | . . . . . . . 2 2 . . . 2 . . Protection 14 | . 1 . . . 2 1 . 4 2 2 . 2 . . Artifact . | . . . . . . . . . . . . . . . Weapon 80 | . . 1 . 1 17 15 2 20 2 1 2 16 1 2 Energy Gun 18 | . . . . . 5 1 1 2 . . . 7 1 1 Energy Cannon 6 | . . . . . 2 1 . 2 . . . 1 . . Ballistic Gun 27 | . . . . 1 2 6 1 13 . . 2 2 . . Ballistic Cannon 16 | . . . . . 5 3 . 1 2 1 . 3 . 1 Launcher 8 | . . 1 . . . 4 . 1 . . . 2 . . Special Weapon 2 | . . . . . . . . 1 . . . 1 . . Impact Weapon 3 | . . . . . 3 . . . . . . . . . Slashing Weapon . | . . . . . . . . . . . . . . . Piercing Weapon . | . . . . . . . . . . . . . . . Special Melee Weapon . | . . . . . . . . . . . . . . . Unidentified Prototypes 10 | . . . . . 5 . . . 1 . 4 . . . Corrupted Parts 8 | . . . . . . 3 . . . . 4 1 . . System Corruption 40 | . . . . . . 16 . . . . 21 3 . . Parts Lost 72 | . . . . . 8 13 . 16 . . 1 25 3 6 Power 8 | . . . . . 1 2 . 2 . . 1 1 . 1 Propulsion 23 | . . . . . 4 5 . 5 . . . 7 . 2 Utility 18 | . . . . . 1 2 . 3 . . . 8 2 2 Weapon 23 | . . . . . 2 4 . 6 . . . 9 1 1 Highest Loss Streak 11 | . . . . . 4 8 . 11 . . 1 9 2 2 To Critical Strikes 3 | . . . . . . 1 . . . . . 2 . . Average Slot Usage (%) 80 | . 92 100 100 100 88 80 80 76 66 65 68 81 77 66 Engine 4 | . 14 14 14 14 2 2 . 4 6 3 . 5 5 3 Core 3 | . . . . . 6 6 6 1 . 2 6 . . . Treads 13 | . . . . . 31 1 1 5 13 13 13 9 13 12 Leg 1 | . 12 . . . . . . . . . . 8 . . Wheel 8 | . 15 28 28 28 3 29 23 14 . . . . . . Device 8 | . . . . . 7 . . 6 16 13 18 14 10 10 Storage 7 | . 14 14 14 14 9 9 7 7 6 6 6 6 6 6 Processor 8 | . . . . . 3 17 15 4 1 6 7 17 18 20 Hackware 2 | . . . . . . . 11 11 6 5 . 1 1 . Protection 5 | . 7 14 14 14 6 . . 5 7 5 6 3 6 1 Energy Gun 3 | . 14 . . . 6 1 . . . . . 8 13 3 Ballistic Gun 4 | . 14 14 14 14 2 12 15 7 . . 4 . . . Ballistic Cannon 3 | . . . . . 6 . . 1 6 6 3 1 . 4 Naked Turns . | . . . . . . . . . . . . . . . Heaviest Build 205 | 12 50 51 51 52 183 167 153 192 194 205 205 193 171 177 Greatest Support 150 | 20 20 20 20 20 88 48 36 150 150 150 150 150 150 150 Greatest Overweight (x) 56 | . 2 2 2 2 15 12 4 50 1 1 1 56 1 1 Average Overweight (x) 2 | . 1 2 2 2 2 3 3 3 1 1 1 1 1 1 Largest Inventory Capacity 30 | . 20 20 20 20 30 30 30 30 30 30 30 30 30 30 Average Capacity 29 | . 13 20 20 20 29 30 30 30 30 30 30 30 30 30 Most Carried 30 | . 8 9 18 20 30 30 30 30 30 30 30 30 30 30 Average Carried 28 | . 7 8 13 19 29 29 29 29 29 29 29 27 28 28 Final Capacity 30 | 8 20 20 20 20 30 30 30 30 30 30 30 30 30 30 Final Carried 30 | 6 7 9 18 20 30 30 30 30 30 30 30 30 28 27 Class Distribution -------------------- 39% | Botlord-Mutant 28% | Bothacker-Mutant 20% | Hauler-Mutant 8% | Mutant 3% | Scavenger-Mutant Dominant Class ---------------- Mutant | -10/Materials Mutant | -10/Mines Mutant | -10/Exiles Mutant | -9/Mines Hauler-Mutant | -8/Materials Bothacker-Mutant | -8/Garrison Bothacker-Mutant | -7/Factory Bothacker-Mutant | -7/Garrison Bothacker-Mutant | -6/Factory Botlord-Mutant | -6/Garrison Botlord-Mutant | -6/Factory Botlord-Mutant | -6/Garrison Botlord-Mutant | -6/Factory Botlord-Mutant | -6/Garrison Resources | -11 -10 -10 -10 -9 -8 -8 -7 -7 -6 -6 -6 -6 -6 -6 ----------- Run | Jun Mat Min Exi Min Mat Gar Fac Gar Fac Gar Fac Gar Fac Gar Matter Collected 7174 | 200 31 5 . 83 1453 1440 . 1800 32 186 371 1234 65 274 Remotely . | . . . . . . . . . . . . . . . Salvage Created 10570 | . 168 9 . . 2663 1835 86 2321 . . 347 2070 457 614 Parts 422 | . 8 5 . . 144 89 2 62 . . 18 69 7 18 Haulers Intercepted 7 | . . . . . 5 . 1 . . . 1 . . . Recyclers Shooed 6 | . 1 . . . 1 . . . . . 2 . 2 . Parts Field Recycled . | . . . . . . . . . . . . . . . Retrieved Matter . | . . . . . . . . . . . . . . . Parts Self-Destructed . | . . . . . . . . . . . . . . . Prevented . | . . . . . . . . . . . . . . . Kills | -11 -10 -10 -10 -9 -8 -8 -7 -7 -6 -6 -6 -6 -6 -6 ------- Run | Jun Mat Min Exi Min Mat Gar Fac Gar Fac Gar Fac Gar Fac Gar Combat Hostiles Destroyed 187 | . 3 3 . . 49 34 . 24 . . 5 46 9 14 Guns 93 | . 3 . . . 22 19 . 18 . . 1 19 8 3 Cannons 56 | . . . . . 27 6 . 1 . . 2 10 . 10 AOE 30 | . . 3 . . . 8 . 5 . . 2 12 . . Classes Destroyed 17 | . 3 . . . 10 2 1 . . . 1 . . . Worker 9 | . . . . . 7 . . . . . 2 . . . Builder 9 | . . . . . 8 . . . . . 1 . . . Tunneler 3 | . . . . . 3 . . . . . . . . . Hauler 7 | . . . . . 5 . 1 . . . 1 . . . Recycler 5 | . 1 . . . 3 . . . . . 1 . . . Operator 2 | . . . . . . . 1 1 . . . . . . Watcher 6 | . 1 . . . 5 . . . . . . . . . Swarmer 49 | . 3 3 . . 9 10 . 5 . . . 15 2 2 Saboteur 1 | . . . . . . . . . . . 1 . . . Grunt 73 | . . . . . 18 10 . 11 . . 2 19 6 7 Brawler 8 | . . . . . . 2 . 2 . . . 4 . . Duelist 2 | . . . . . 1 . . 1 . . . . . . Sentry 24 | . . . . . 8 3 . 3 . . 1 5 1 3 Specialist 10 | . . . . . 10 . . . . . . . . . Hunter 6 | . . . . . 1 2 . 1 . . . . . 2 Programmer 12 | . . . . . . 7 . 1 . . 1 3 . . Heavy 2 | . . . . . 2 . . . . . . . . . Best Kill Streak 12 | . 4 3 . . 7 7 2 5 . . 6 12 4 6 Combat Bots Only 12 | . 3 3 . . 5 7 . 5 . . 2 12 4 6 Max Kills in Single Turn 3 | . 1 3 . . 2 3 1 2 . . 3 3 1 1 Gunslinging 1 | . . . . . . 1 . . . . . . . . Exploded 3 | . . 3 . . . 3 . 2 . . 1 3 . . Melee . | . . . . . . . . . . . . . . . Uniques/NPCs Destroyed . | . . . . . . . . . . . . . . . Combat | -11 -10 -10 -10 -9 -8 -8 -7 -7 -6 -6 -6 -6 -6 -6 -------- Run | Jun Mat Min Exi Min Mat Gar Fac Gar Fac Gar Fac Gar Fac Gar Damage Taken 16414 | . 176 44 . . 2768 1860 . 3096 213 144 1205 4273 592 2043 Core 1943 | . 56 6 . . 240 241 . 542 . 20 83 421 40 294 Absorbed by Shields 165 | . . . . . . . . . . . . 66 . 99 Reduced by Siege Mode 279 | . . . . . . . . . . . . 54 25 200 Redirected to Shielding 3 | . . 3 . . . . . . . . . . . . Core Remaining (%) 52 | 100 . . . 75 . 12 . 22 . . . . . . Volleys Fired 807 | . 13 1 . . 179 157 10 211 2 12 11 140 26 45 Largest 2 | . 2 1 . . 2 2 2 2 1 1 2 2 2 2 Hottest 250 | . 60 30 . . 119 250 56 250 75 75 76 250 150 150 Shots Fired 1368 | . 26 1 . . 348 262 20 327 2 12 16 247 50 57 Gun 1005 | . 26 . . . 151 231 20 301 . . 10 188 50 28 Cannon 336 | . . . . . 197 24 . 17 2 12 6 49 . 29 Launcher 23 | . . 1 . . . 7 . 6 . . . 9 . . Special 4 | . . . . . . . . 3 . . . 1 . . Kinetic 878 | . 13 . . . 175 239 20 298 2 12 16 74 . 29 Thermal 368 | . . . . . 165 3 . 12 . . . 110 50 28 Explosive 23 | . . 1 . . . 7 . 6 . . . 9 . . Electromagnetic 95 | . 13 . . . 8 13 . 8 . . . 53 . . Robot Hit Streak 87 | . 5 . . . 17 30 19 38 3 7 4 87 34 10 Robot Miss Streak 8 | . 3 . . . 8 5 2 4 . . 1 2 2 3 Penetration Max 2 | . . . . . 1 1 . 1 . . . 2 . 1 Secondary Targets 10 | . 2 . . . 1 2 . 2 . . . 3 . . Max Gunslinging Chain 1 | . 1 . . . 1 1 . 1 . . . 1 . . Shots Hit Robots 970 | . 15 . . . 242 191 10 226 2 4 7 191 39 43 Core Hits 627 | . 7 3 . . 192 105 4 146 8 3 14 108 17 20 Critical Kills 5 | . . . . . . 2 . 2 . . . 1 . . Critical Parts Destroyed 10 | . 1 . . . 1 4 . 2 . . 1 1 . . Critical Strikes 53 | . 1 . . . 9 6 . 6 . 1 1 16 9 4 Burn 29 | . . . . . 8 . . . . . . 8 9 4 Destroy 14 | . 1 . . . . 6 . 4 . . 1 2 . . Blast 8 | . . . . . . . . 1 . 1 . 6 . . Corrupt 1 | . . . . . . . . 1 . . . . . . Smash 1 | . . . . . 1 . . . . . . . . . Melee Attacks 10 | . . . . . 10 . . . . . . . . . Impact 10 | . . . . . 10 . . . . . . . . . Slashing . | . . . . . . . . . . . . . . . Piercing . | . . . . . . . . . . . . . . . Sneak Attacks 2 | . . . . . 2 . . . . . . . . . Combat Hostiles . | . . . . . . . . . . . . . . . Follow-up Attacks . | . . . . . . . . . . . . . . . Damage Inflicted 25579 | . 198 125 . . 5472 3789 218 4870 173 430 1190 6312 841 1961 Guns 12877 | . 198 . . . 1835 2557 218 3349 . . 136 3271 841 472 Cannons 7560 | . . . . . 3387 432 . 174 153 300 187 1438 . 1489 Explosions 4892 | . . 125 . . . 800 . 1347 20 130 867 1603 . . Melee 250 | . . . . . 250 . . . . . . . . . Ramming . | . . . . . . . . . . . . . . . Kinetic 13804 | . 105 . . . 2767 2700 218 3314 153 300 323 2435 . 1489 Thermal 6839 | . . . . . 2267 232 . 827 . . 329 1871 841 472 Explosive 3529 | . . 125 . . . 634 . 629 . 130 538 1473 . . Electromagnetic 1157 | . 93 . . . 188 223 . 100 20 . . 533 . . Impact 250 | . . . . . 250 . . . . . . . . . Slashing . | . . . . . . . . . . . . . . . Piercing . | . . . . . . . . . . . . . . . Highest Corruption 27 | . . . . . 1 25 . 2 1 1 22 27 27 27 Average Corruption 13 | . . . . . 1 10 . 1 1 1 8 26 27 27 Corruption Purged . | . . . . . . . . . . . . . . . Corruption Blocked . | . . . . . . . . . . . . . . . Effects 298 | . . . . . 2 51 . 15 . 10 23 141 26 30 Message Errors 62 | . . . . . . 13 . 6 . 4 4 26 4 5 Matter Fused 69 | . . . . . 2 9 . 4 . 5 5 33 4 7 Heat Flow Errors 31 | . . . . . . 3 . 4 . . 4 19 1 . Energy Discharges 33 | . . . . . . 12 . . . . 3 14 2 2 Parts Rejected 4 | . . . . . . . . . . . . 3 1 . Parts Fused 1 | . . . . . . . . . . . . 1 . . Data Loss (minor) 39 | . . . . . . 7 . 1 . 1 7 10 6 7 Data Loss (major) 17 | . . . . . . 2 . . . . . 10 2 3 Misfires 14 | . . . . . . 2 . . . . . 10 1 1 Alerts 5 | . . . . . . 1 . . . . . 1 2 1 Misdirections 3 | . . . . . . . . . . . . 3 . . Weapon Failures 20 | . . . . . . 2 . . . . . 11 3 4 Overload Shots . | . . . . . . . . . . . . . . . Overflow Damage 559 | . . . . . 200 16 . 28 40 54 41 83 . 97 Projectiles 268 | . . . . . 16 8 . . 40 54 20 33 . 97 Explosions 107 | . . . . . . 8 . 28 . . 21 50 . . Melee 184 | . . . . . 184 . . . . . . . . . Knockbacks 78 | . . . . . 51 10 . . 2 1 . 6 . 8 Impact 1 | . . . . . 1 . . . . . . . . . Kinetic 70 | . . . . . 44 9 . . 2 1 . 6 . 8 Secondary 7 | . . . . . 6 1 . . . . . . . . Self-Inflicted Damage 902 | . . 19 . . . 125 . 153 1 126 73 405 . . Shots 38 | . . 1 . . . 7 . 15 1 2 2 10 . . Rammed . | . . . . . . . . . . . . . . . Targets Rammed . | . . . . . . . . . . . . . . . Kicked . | . . . . . . . . . . . . . . . Crushed . | . . . . . . . . . . . . . . . Highest Temperature 476 | . . . . . 448 476 . 344 . . 278 386 189 140 Average Temperature 81 | . . . . . 84 79 . 89 . . 109 78 53 49 Received Heat Transfer 3979 | . . . . . 918 252 . 750 18 9 93 1155 276 508 Effects 8 | . . . . . 5 . . 1 . . 2 . . . Shutdowns 1 | . . . . . 1 . . . . . . . . . Energy Bleed 1 | . . . . . . . . 1 . . . . . . Interference 5 | . . . . . 3 . . . . . 2 . . . Damage (minor) 1 | . . . . . 1 . . . . . . . . . Siege Activations 8 | . . . . . . . . . . . . 3 2 3 Total Turns 165 | . . . . . . . . . . . . 33 54 78 Longest Duration 39 | . . . . . . . . . . . . 21 32 39 Robots Corrupted 4 | . . . . . . 2 . . . . . 2 . . Combat Hostiles 2 | . . . . . . . . . . . . 2 . . Parts Fried 7 | . . . . . 4 . . . . . . 3 . . Impact Corruptions 7 | . . . . . 7 . . . . . . . . . Robots Melted 11 | . . . . . . 1 . 5 . . . 3 1 1 Combat Hostiles 6 | . . . . . . 1 . . . . . 3 1 1 Parts Melted 55 | . . . . . 1 3 . 31 . . . 8 9 3 Heat Transferred 18346 | . . . . . 4440 1120 . 4240 . . 200 4598 2640 1108 Parts Sabotaged . | . . . . . . . . . . . . . . . Parts Stolen . | . . . . . . . . . . . . . . . Parts Stripped . | . . . . . . . . . . . . . . . Power Chain Reactions . | . . . . . . . . . . . . . . . Missiles Intercepted . | . . . . . . . . . . . . . . . Alert | -11 -10 -10 -10 -9 -8 -8 -7 -7 -6 -6 -6 -6 -6 -6 ------- Run | Jun Mat Min Exi Min Mat Gar Fac Gar Fac Gar Fac Gar Fac Gar Peak Influence 2051 | . 96 129 . . 816 2051 1116 2012 1371 1567 1211 1765 1097 865 Initial 1076 | . . 37 . . . 530 1076 781 1056 959 822 819 926 627 Average 892 | . 53 125 . . 169 1236 1107 1276 1193 1265 1009 1231 1024 752 Maximum Alert Level 5 | . . . . . 3 5 4 5 4 4 4 5 3 3 Low Security (%) 22 | . 100 100 . 100 73 . . . . . . . . . Level 1 3 | . . . . . 17 . . . . . . . . . Level 2 4 | . . . . . 7 13 . . . . . . . 34 Level 3 27 | . . . . . 1 22 17 41 7 11 82 32 100 65 Level 4 35 | . . . . . . 37 82 44 92 88 17 58 . . Level 5 6 | . . . . . . 26 . 13 . . . 9 . . High Security . | . . . . . . . . . . . . . . . Max Security . | . . . . . . . . . . . . . . . Sterilizations 1 | . . . . . 1 . . . . . . . . . Squads Dispatched 37 | . 1 . . . 19 . 2 . 3 . 9 . 3 . Investigation 9 | . 1 . . . 4 . . . . . 3 . 1 . Extermination 4 | . . . . . . . 1 . 1 . 2 . . . Reinforcement 17 | . . . . . 12 . 1 . 1 . 2 . 1 . Assault 2 | . . . . . . . . . . . 1 . 1 . Garrison 5 | . . . . . 3 . . . 1 . 1 . . . Intercept . | . . . . . . . . . . . . . . . Searches Triggered . | . . . . . . . . . . . . . . . Construction Impeded 3 | . . . . . 2 . . . . . 1 . . . Haulers Reinforced . | . . . . . . . . . . . . . . . Active Scanning Responses . | . . . . . . . . . . . . . . . Cargo Convoy Interrupts 1 | . . . . . . . . . . . 1 . . . Stealth | -11 -10 -10 -10 -9 -8 -8 -7 -7 -6 -6 -6 -6 -6 -6 --------- Run | Jun Mat Min Exi Min Mat Gar Fac Gar Fac Gar Fac Gar Fac Gar Distress Signals 3 | . . . . . 3 . . . . . . . . . Communications Jammed . | . . . . . . . . . . . . . . . Distress Signals . | . . . . . . . . . . . . . . . Times Spotted 278 | . 5 3 . . 70 37 3 34 4 . 33 55 15 19 Peak Tracking Total 12 | . 3 3 . . 6 5 1 6 1 . 12 7 4 8 Tactical Retreats 12 | . . . . . 2 4 . 1 . . . 2 2 1 Traps | -11 -10 -10 -10 -9 -8 -8 -7 -7 -6 -6 -6 -6 -6 -6 ------- Run | Jun Mat Min Exi Min Mat Gar Fac Gar Fac Gar Fac Gar Fac Gar Traps Triggered 33 | . 1 . . . 1 10 . 10 . 3 . 8 . . Indirectly . | . . . . . . . . . . . . . . . Trap Hack Attempts . | . . . . . . . . . . . . . . . Triggered . | . . . . . . . . . . . . . . . Disarmed . | . . . . . . . . . . . . . . . Reprogrammed . | . . . . . . . . . . . . . . . Reused . | . . . . . . . . . . . . . . . Traps Extracted . | . . . . . . . . . . . . . . . Installed . | . . . . . . . . . . . . . . . Triggered . | . . . . . . . . . . . . . . . Machines | -11 -10 -10 -10 -9 -8 -8 -7 -7 -6 -6 -6 -6 -6 -6 ---------- Run | Jun Mat Min Exi Min Mat Gar Fac Gar Fac Gar Fac Gar Fac Gar Machines Disabled 55 | . . . . . . 12 . 9 6 6 9 12 . 1 Max in Single Turn 4 | . . . . . . 2 . 1 2 1 4 2 . 1 Garrison Relay 24 | . . . . . . 8 . 4 . 4 . 7 . 1 Phase Generator 4 | . . . . . . 1 . 1 . 1 . 1 . . Machines Repaired . | . . . . . . . . . . . . . . . Machines Sabotaged . | . . . . . . . . . . . . . . . Overloaded Fab Kills . | . . . . . . . . . . . . . . . Hacking | -11 -10 -10 -10 -9 -8 -8 -7 -7 -6 -6 -6 -6 -6 -6 --------- Run | Jun Mat Min Exi Min Mat Gar Fac Gar Fac Gar Fac Gar Fac Gar Machines Accessed 35 | . 5 . 1 . 7 4 3 2 2 1 5 2 2 1 Terminals 25 | . 5 . . . 3 4 1 2 1 1 4 2 1 1 Fabricators 1 | . . . . . . . 1 . . . . . . . Repair Stations . | . . . . . . . . . . . . . . . Recycling Units 2 | . . . . . 2 . . . . . . . . . Scanalyzers 1 | . . . . . 1 . . . . . . . . . Garrison Access 5 | . . . . . 1 . 1 . 1 . 1 . 1 . Total Hacks 86 | . 18 . 1 . 28 5 6 4 3 1 9 4 4 3 Successful 36 | . 6 . 1 . 13 2 4 1 1 1 3 . 3 1 Failed 50 | . 12 . . . 15 3 2 3 2 . 6 4 1 2 Catastrophic 12 | . . . . . . 3 . 1 1 . 3 2 1 1 Database Lockouts . | . . . . . . . . . . . . . . . Manual 23 | . 11 . 1 . 7 . 4 . . . . . . . Terminals 62 | . 18 . . . 11 5 3 4 2 1 8 4 3 3 Fabricators 2 | . . . . . . . 2 . . . . . . . Repair Stations . | . . . . . . . . . . . . . . . Recycling Units 13 | . . . . . 13 . . . . . . . . . Scanalyzers 3 | . . . . . 3 . . . . . . . . . Garrison Access 5 | . . . . . 1 . 1 . 1 . 1 . 1 . Terminal Hacks 17 | . 3 . 1 . 4 2 . 1 . 1 2 . 2 1 Record 2 | . . . . . . . . . . . 1 . 1 . Robot Analysis 2 | . 2 . . . . . . . . . . . . . Prototype ID Bank 3 | . 1 . . . 2 . . . . . . . . . Open DSF 1 | . . . . . . . . . . . 1 . . . Emergency Access Points 3 | . . . . . . . . 1 . 1 . . . 1 Unreport Threat 2 | . . . . . 2 . . . . . . . . . Zone Layout 1 | . . . . . . . . . . . . . 1 . Garrison Registry 1 | . . . . . . 1 . . . . . . . . Patrol Navigation 1 | . . . . . . 1 . . . . . . . . EX-Prototype ID Bank 1 | . . . 1 . . . . . . . . . . . Fabricator Hacks 1 | . . . . . . . 1 . . . . . . . Build 1 | . . . . . . . 1 . . . . . . . Repair Station Hacks . | . . . . . . . . . . . . . . . Recycling Unit Hacks 4 | . . . . . 4 . . . . . . . . . Report Inventory 2 | . . . . . 2 . . . . . . . . . Retrieve Components 2 | . . . . . 2 . . . . . . . . . Scanalyzer 1 | . . . . . 1 . . . . . . . . . Insert Component 1 | . . . . . 1 . . . . . . . . . Garrison Access Hacks 5 | . . . . . 1 . 1 . 1 . 1 . 1 . Unlock Access 5 | . . . . . 1 . 1 . 1 . 1 . 1 . Unauthorized Hacks 8 | . 3 . . . 3 . 2 . . . . . . . Terminals 4 | . 3 . . . . . 1 . . . . . . . Botnet 4 | . 3 . . . . . 1 . . . . . . . Fabricators 1 | . . . . . . . 1 . . . . . . . Fabnet 1 | . . . . . . . 1 . . . . . . . Repair Stations . | . . . . . . . . . . . . . . . Recycling Units 3 | . . . . . 3 . . . . . . . . . Reject 1 | . . . . . 1 . . . . . . . . . Mask 1 | . . . . . 1 . . . . . . . . . Tunnel 1 | . . . . . 1 . . . . . . . . . Scanalyzers . | . . . . . . . . . . . . . . . Garrison Access . | . . . . . . . . . . . . . . . Data Cores Recovered . | . . . . . . . . . . . . . . . Used . | . . . . . . . . . . . . . . . Hacking Detections 27 | . 5 . . . 5 3 2 2 1 . 4 2 2 1 Full Trace Events 14 | . 3 . . . 2 1 . 1 . . 3 2 1 1 Feedback Events 1 | . . . . . 1 . . . . . . . . . Corruption 1 | . . . . . 1 . . . . . . . . . Feedback Blocked . | . . . . . . . . . . . . . . . Robot Schematics Acquired . | . . . . . . . . . . . . . . . Robots Built . | . . . . . . . . . . . . . . . Authchips . | . . . . . . . . . . . . . . . Time 99 | . . . . . . . 99 . . . . . . . Total Robot Build Rating . | . . . . . . . . . . . . . . . Part Schematics Acquired . | . . . . . . . . . . . . . . . Parts Built . | . . . . . . . . . . . . . . . Authchips . | . . . . . . . . . . . . . . . Time . | . . . . . . . . . . . . . . . Total Part Build Rating . | . . . . . . . . . . . . . . . Parts Repaired . | . . . . . . . . . . . . . . . Time . | . . . . . . . . . . . . . . . Parts Recycled . | . . . . . . . . . . . . . . . Recycled Matter . | . . . . . . . . . . . . . . . Retrieved Matter . | . . . . . . . . . . . . . . . Retrieved Components 9 | . . . . . 9 . . . . . . . . . Parts Scanalyzed 1 | . . . . . 1 . . . . . . . . . Part Schematics Acquired . | . . . . . . . . . . . . . . . Parts Damaged . | . . . . . . . . . . . . . . . Bothacking | -11 -10 -10 -10 -9 -8 -8 -7 -7 -6 -6 -6 -6 -6 -6 ------------ Run | Jun Mat Min Exi Min Mat Gar Fac Gar Fac Gar Fac Gar Fac Gar Used RIF Installer 6 | . . . . . . 2 . 1 . 1 . 2 . . Threat Obfuscator 2 | . . . . . . . . 1 . 1 . . . . Patrol Navigation 1 | . . . . . . 1 . . . . . . . . Structural Interface 1 | . . . . . . . . . . . . 1 . . Program Shield 1 | . . . . . . . . . . . . 1 . . Robots Hacked 12 | . . . . . . . . 3 . . 2 5 2 . Non-combat . | . . . . . . . . . . . . . . . Combat 12 | . . . . . . . . 3 . . 2 5 2 . Robot Hacks Applied 4 | . . . . . . . . 3 . . . 1 . . overwrite_iff 1 | . . . . . . . . 1 . . . . . . formatsys_high 3 | . . . . . . . . 2 . . . 1 . . Relay Couplers Released 94 | . . . . . . 32 . 16 . 16 . 27 . 3 Machine Destruction 94 | . . . . . . 32 . 16 . 16 . 27 . 3 Attached 4 | . . . . . . . . 2 . . . 2 . . Fabnet Peak Effective % 3 | . . . . . . . . . 3 3 3 3 3 3 Autooverrided 8 | . . . . . . . . . . . 2 4 2 . Robots Rewired 13 | . . . . . . 4 . . . 3 . 6 . . Allies Hacked . | . . . . . . . . . . . . . . . Hacks Repelled . | . . . . . . . . . . . . . . . Allies | -11 -10 -10 -10 -9 -8 -8 -7 -7 -6 -6 -6 -6 -6 -6 -------- Run | Jun Mat Min Exi Min Mat Gar Fac Gar Fac Gar Fac Gar Fac Gar Total Allies 33 | . . . . 5 . 4 . 5 . 3 2 12 2 . Largest Group 5 | . . . . 5 5 4 . 3 2 5 5 4 3 . Highest-Rated Group 466 | . . . . 85 85 84 . 190 190 466 466 161 87 . Highest-Rated Ally 119 | . . . . 31 31 21 . 95 95 119 119 47 29 . Total Orders . | . . . . . . . . . . . . . . . Ally Attacks 216 | . . . . . 22 13 . 17 21 16 52 36 39 . Total Damage 7197 | . . . . . 211 262 . 622 880 753 3001 856 612 . Kills 64 | . . . . . 4 2 . 5 9 4 27 9 4 . Allies Corrupted 2 | . . . . . . . . . . . 2 . . . Allies Melted 2 | . . . . . . . . . . . . 2 . . Intel | -11 -10 -10 -10 -9 -8 -8 -7 -7 -6 -6 -6 -6 -6 -6 ------- Run | Jun Mat Min Exi Min Mat Gar Fac Gar Fac Gar Fac Gar Fac Gar Robot Analysis Total 2 | . 2 . . . . . . . . . . . . . Derelict Logs Recovered 2 | . . . . 2 . . . . . . . . . . Drone Launches . | . . . . . . . . . . . . . . . Drone Recoveries . | . . . . . . . . . . . . . . . Exploration | -11 -10 -10 -10 -9 -8 -8 -7 -7 -6 -6 -6 -6 -6 -6 ------------- Run | Jun Mat Min Exi Min Mat Gar Fac Gar Fac Gar Fac Gar Fac Gar Turns Passed 16087 | . 322 54 304 521 3588 1883 305 2408 369 1654 1071 2643 422 543 Spaces Moved 5941 | 1 230 43 263 422 1019 755 175 844 141 645 415 702 122 164 Core 7 | . . . . . . . . 5 . . . 2 . . Treads 3005 | . . . . . 806 3 . 256 141 645 415 453 122 164 Legs 323 | 1 75 . . . . . . . . . . 247 . . Wheels 2606 | . 155 43 263 422 213 752 175 583 . . . . . . Hover . | . . . . . . . . . . . . . . . Flight . | . . . . . . . . . . . . . . . Fastest Speed 80 | 120 80 110 110 110 110 127 135 135 240 240 240 240 240 240 Average Speed 202 | 120 110 110 110 110 242 149 149 195 240 240 240 273 240 240 Slowest Speed 2850 | 120 120 110 110 110 397 720 150 2550 240 240 240 2850 240 240 Overloaded Moves . | . . . . . . . . . . . . . . . Propulsion Burnouts . | . . . . . . . . . . . . . . . Robots Hopped . | . . . . . . . . . . . . . . . Cave-ins Triggered . | . . . . . . . . . . . . . . . Exploration Rate (%) 47 | 2 40 8 65 93 71 80 7 97 6 95 18 84 6 33 Regions Visited 14 Branch Regions 3 Pre-discovered Areas 1 | . . . . . 1 . . . . . . . . . Known Exits Taken 5 | . . . . . 1 . 1 . 1 . 1 . 1 . Unknown Exits Taken 5 | 1 1 1 1 1 . . . . . . . . . . Scrap Searched 3 | . . . . 3 . . . . . . . . . . Spaces Dug 46 | . . . . . 9 . . . . . 36 1 . . Terrain Destroyed 605 | . . 7 . . 20 95 . 102 . 84 85 203 . 9 Melee 7 | . . . . . 7 . . . . . . . . . Projectile 55 | . . . . . 13 4 . 5 . 2 12 10 . 9 AOE 543 | . . 7 . . . 91 . 97 . 82 73 193 . . Terrain Rammed . | . . . . . . . . . . . . . . . Walls Destroyed . | . . . . . . . . . . . . . . . Machines Disabled . | . . . . . . . . . . . . . . . Actions | -11 -10 -10 -10 -9 -8 -8 -7 -7 -6 -6 -6 -6 -6 -6 --------- Run | Jun Mat Min Exi Min Mat Gar Fac Gar Fac Gar Fac Gar Fac Gar Total 8576 | . 274 48 277 479 1776 1245 197 1290 169 736 471 1174 200 240 Wait 1105 | . 19 2 8 52 407 177 3 108 10 34 27 187 50 21 Move 5931 | . 229 42 262 421 1019 754 175 843 141 644 415 701 121 164 Hop . | . . . . . . . . . . . . . . . Pick Up 149 | . 3 2 7 3 51 23 1 25 3 9 2 19 . 1 Fast Attach 82 | . 2 . . . 18 8 4 12 4 4 7 21 1 1 Attach 64 | . 2 . . . 9 10 1 15 1 3 . 16 2 5 Detach 21 | . 1 . . . 3 2 . 8 1 1 1 1 . 3 Swap 77 | . 1 1 . 1 26 15 . 18 1 3 1 10 . . Drop 155 | . 4 . . 2 54 23 3 30 6 10 7 16 . . Fire 807 | . 13 1 . . 179 157 10 211 2 12 11 140 26 45 Melee 10 | . . . . . 10 . . . . . . . . . Ram . | . . . . . . . . . . . . . . . Kick . | . . . . . . . . . . . . . . . Crush . | . . . . . . . . . . . . . . . Escape Stasis 89 | . . . . . . 48 . 20 . . . 21 . . Rewire 86 | . . . . . . 28 . . . 16 . 42 . . Trap . | . . . . . . . . . . . . . . . Miscellaneous . | . . . . . . . . . . . . . . . Route ------- -11/Junkyard -10/Materials (discovered 2 exits: [*Mat] / [*Min]) -10/Mines -10/Exiles -9/Mines -8/Materials (discovered 3 exits: *Fac x2 / Gar) -8/Garrison (discovered 3 exits: *Fac x3) -7/Factory -7/Garrison (discovered 3 exits: *Fac x3) -6/Factory -6/Garrison (discovered 3 exits: *Fac x3) -6/Factory (discovered 3 exits: [*Fac x2] / Gar) -6/Garrison (discovered 4 exits: [*Fac x3] / *Fac) -6/Factory -6/Garrison (discovered 1 exit: [*Fac]) History --------- Turn | Location | Event 1 | -11/Junkyard | Discovered new exit (range 0) 1 | -11/Junkyard | Entered Materials 223 | -10/Materials | Discovered new exit (range 16) 292 | -10/Materials | Discovered new exit (range 16) 306 | -10/Materials | Build established: Mutant 323 | -10/Materials | Entered Mines 373 | -10/Mines | Deemed a non-threat by the Exiles lab entrance 373 | -10/Mines | Discovered new exit (range 5) 377 | -10/Mines | Entered Exiles 412 | -10/Exiles | Met 8R-AWN 431 | -10/Exiles | Met EX-HEX 498 | -10/Exiles | Met EX-BIN 511 | -10/Exiles | Aligned with FarCom system 512 | -10/Exiles | Given EX-Vault access code 537 | -10/Exiles | Opened EX-Vault 543 | -10/Exiles | Found 0b10 Alert Chip 547 | -10/Exiles | Found Superbattery 550 | -10/Exiles | Found Firepult 575 | -10/Exiles | Warned to stay clear of 0b10 Research branches 605 | -10/Exiles | Met EX-DEC 662 | -10/Exiles | Discovered new exit (range 14) 681 | -10/Exiles | Stole three prototypes: Superbattery, 0b10 Alert Chip, Firepult 681 | -10/Exiles | Entered Mines 690 | -9/Mines | Met a Derelict bent on vengeance 747 | -9/Mines | Learned Materials stockpile data 777 | -9/Mines | Discovered new exit (range 10) 905 | -9/Mines | Assisted by bots powering up and referring to "LRC-V3" 1015 | -9/Mines | Learned location of 1 exit from Materials 1202 | -9/Mines | Entered Materials 1202 | -8/Materials | Accompanied by 5 allies 1202 | -8/Materials | Evolved 4 slots: Propulsion x2, Utility x2 1203 | -8/Materials | Identified exit to Factory 1207 | -8/Materials | Led the pair of lost Derelicts to an unsafe place 1642 | -8/Materials | Build established: Hauler-Mutant 3116 | -8/Materials | Discovered exit to Factory (range 11) 4518 | -8/Materials | Garrison activated, responded to threat 4574 | -8/Materials | Lost 4 parts (1p2n1w) 4774 | -8/Materials | Sterilization system engaged 4774 | -8/Materials | Non-combat units ordered to evacuate 4790 | -8/Materials | Identified exit to Garrison 4790 | -8/Materials | Entered Garrison 4846 | -8/Garrison | Triggered checkpoint 4953 | -8/Garrison | Installed Relay Interface Framework 4970 | -8/Garrison | Garrison Relay disabled 4997 | -8/Garrison | Build established: Scavenger-Mutant 5033 | -8/Garrison | Triggered checkpoint 5114 | -8/Garrison | Triggered checkpoint 5366 | -8/Garrison | Discovered exit to Factory (range 9) 5432 | -8/Garrison | Triggered checkpoint 5440 | -8/Garrison | Triggered checkpoint 5463 | -8/Garrison | Core integrity fell below 50% 5489 | -8/Garrison | Destroyed 7 combat bots 5558 | -8/Garrison | Build established: Bothacker-Mutant 5698 | -8/Garrison | Discovered exit to Factory (range 9) 5734 | -8/Garrison | Triggered checkpoint 5803 | -8/Garrison | Garrison Relay disabled 5803 | -8/Garrison | Garrison Relay disabled 5821 | -8/Garrison | Garrison Relay disabled 5851 | -8/Garrison | Garrison Relay disabled 5871 | -8/Garrison | Lost 8 parts (3n2u3w) 6005 | -8/Garrison | System corruption reached 10% 6018 | -8/Garrison | Garrison Relay disabled 6126 | -8/Garrison | Discovered exit to Factory (range 10) 6156 | -8/Garrison | Triggered checkpoint 6180 | -8/Garrison | Triggered checkpoint 6200 | -8/Garrison | Core integrity fell below 20% 6232 | -8/Garrison | Lost 3 parts (1p1n1w) 6348 | -8/Garrison | Discovered exit to Factory (range 53) 6348 | -8/Garrison | Discovered exit to Factory (range 84) 6348 | -8/Garrison | Discovered exit to Factory (range 12) 6430 | -8/Garrison | Expanded RIF knowledge: Patrol Navigation 6492 | -8/Garrison | Garrison Relay disabled 6582 | -8/Garrison | Triggered checkpoint 6628 | -8/Garrison | Garrison Relay disabled 6636 | -8/Garrison | Phase Generator disabled 6673 | -8/Garrison | Entered Factory 6673 | -7/Factory | Evolved 2 slots: Utility x2 6675 | -7/Factory | FarCom data flow suspended 6978 | -7/Factory | Identified exit to Garrison 6978 | -7/Factory | Entered Garrison 6992 | -7/Garrison | Triggered checkpoint 7084 | -7/Garrison | Expanded RIF knowledge: Threat Obfuscation 7152 | -7/Garrison | Triggered checkpoint 7194 | -7/Garrison | Heavy support dispatched to Factory 7316 | -7/Garrison | Triggered checkpoint 7508 | -7/Garrison | Triggered checkpoint 7528 | -7/Garrison | Triggered checkpoint 7541 | -7/Garrison | Core integrity fell below 50% 7569 | -7/Garrison | Lost 11 parts (1p4n2u4w) 7720 | -7/Garrison | Triggered checkpoint 8147 | -7/Garrison | Found Launcher Loader 8215 | -7/Garrison | H-XX Assembler disabled 8414 | -7/Garrison | Discovered new exit (range 10) 8482 | -7/Garrison | Triggered checkpoint 8482 | -7/Garrison | Garrison Relay disabled 8650 | -7/Garrison | Triggered checkpoint 8749 | -7/Garrison | Garrison Relay disabled 8953 | -7/Garrison | Discovered new exit (range 13) 9064 | -7/Garrison | Phase Generator disabled 9236 | -7/Garrison | Triggered checkpoint 9287 | -7/Garrison | Found embedded Infiltrators 9293 | -7/Garrison | Garrison Relay disabled 9354 | -7/Garrison | Discovered new exit (range 8) 9386 | -7/Garrison | Entered Factory 9386 | -6/Factory | Accompanied by 2 allies 9386 | -6/Factory | Evolved 2 slots: Utility x2 9705 | -6/Factory | Garrison activated, responded to threat 9755 | -6/Factory | Identified exit to Garrison 9755 | -6/Factory | Entered Garrison 9755 | -6/Garrison | Discovered recently destroyed garrison 9755 | -6/Garrison | Accompanied by 2 allies 9777 | -6/Garrison | Expanded RIF knowledge: Threat Obfuscation 9869 | -6/Garrison | Phase Generator disabled 9942 | -6/Garrison | Garrison Relay disabled 10049 | -6/Garrison | Garrison Relay disabled 10085 | -6/Garrison | Build established: Botlord-Mutant 10164 | -6/Garrison | Found Relay Coupler [Proto] 10168 | -6/Garrison | Found Relay Coupler [Proto] 10173 | -6/Garrison | Found Relay Coupler [Proto] 10176 | -6/Garrison | Found Relay Coupler [Proto] 10391 | -6/Garrison | Discovered new exit (range 7) 10420 | -6/Garrison | Rewired Executioner 10426 | -6/Garrison | Rewired Executioner 10652 | -6/Garrison | Discovered new exit (range 13) 10767 | -6/Garrison | Garrison Relay disabled 11064 | -6/Garrison | Garrison Relay disabled 11102 | -6/Garrison | Discovered new exit (range 9) 11409 | -6/Garrison | Entered Factory 11409 | -6/Factory | Accompanied by 5 allies 11672 | -6/Factory | Discovered new exit (range 14) 11759 | -6/Factory | First assault squad dispatched 12091 | -6/Factory | Discovered new exit (range 16) 12116 | -6/Factory | System corruption reached 10% 12126 | -6/Factory | Found Corrupted Prototype Device 12126 | -6/Factory | Identified Adv. Kinecellerator 12446 | -6/Factory | Garrison activated, responded to threat 12460 | -6/Factory | Cargo convoy interrupted 12480 | -6/Factory | Identified exit to Garrison 12480 | -6/Factory | Entered Garrison 12572 | -6/Garrison | Lost 7 parts (1p2n2u2w) 12583 | -6/Garrison | Destroyed 7 combat bots 12636 | -6/Garrison | Triggered checkpoint 12734 | -6/Garrison | Triggered checkpoint 12814 | -6/Garrison | Expanded RIF knowledge: Structural Interface 12860 | -6/Garrison | Garrison Relay disabled 12918 | -6/Garrison | Triggered checkpoint 12966 | -6/Garrison | Lost 4 parts (1n1u2w) 12994 | -6/Garrison | Triggered checkpoint 13099 | -6/Garrison | Rescued a captive Derelict 13348 | -6/Garrison | Phase Generator disabled 13414 | -6/Garrison | Triggered checkpoint 13446 | -6/Garrison | Triggered checkpoint 13452 | -6/Garrison | Local machine network offline 13459 | -6/Garrison | Core integrity fell below 50% 13504 | -6/Garrison | Destroyed 12 combat bots 13532 | -6/Garrison | Lost 9 parts (3n2u4w) 13771 | -6/Garrison | Discovered new exit (range 15) 13904 | -6/Garrison | Triggered checkpoint 14040 | -6/Garrison | Expanded RIF knowledge: Program Shield 14197 | -6/Garrison | Discovered new exit (range 13) 14312 | -6/Garrison | Triggered checkpoint 14365 | -6/Garrison | Garrison Relay disabled 14762 | -6/Garrison | Garrison Relay disabled 14765 | -6/Garrison | Garrison Relay disabled 14768 | -6/Garrison | Garrison Relay disabled 14774 | -6/Garrison | Garrison Relay disabled 14801 | -6/Garrison | Discovered new exit (range 5) 14841 | -6/Garrison | Triggered checkpoint 14911 | -6/Garrison | Garrison Relay disabled 15036 | -6/Garrison | Triggered checkpoint 15086 | -6/Garrison | Discovered new exit (range 3) 15123 | -6/Garrison | Entered Factory 15123 | -6/Factory | Accompanied by 3 allies 15390 | -6/Factory | Local machine network offline 15473 | -6/Factory | First assault squad dispatched 15536 | -6/Factory | Identified exit to Garrison 15545 | -6/Factory | Entered Garrison 15614 | -6/Garrison | Triggered checkpoint 15731 | -6/Garrison | Garrison Relay disabled 15856 | -6/Garrison | Core integrity fell below 20% 15954 | -6/Garrison | Triggered checkpoint 16035 | -6/Garrison | Discovered new exit (range 5) 16062 | -6/Garrison | Triggered checkpoint 16088 | -6/Garrison | Destroyed by Y-54 Guardian with Gatling Laser Last Messages --------------- 15936_ Acquired 10 matter. 15937_ System corrupted: Component data lost. 15939_ Acquired 23 matter. 15954_ Beams of light sweep through the air. An alarm sounds. 15956_ Acquired 3 matter. 15958_ Acquired 65 matter. 15959_ System corrupted: Substantial component data lost. 15999_ System corrupted: Matter fused (-7). 16020_ System corrupted: Component data lost. 16035_ EXIT=FOUND 16036_ System corrupted: FCS attempts to trigger Hvy. Mass Driver. 16036_ System corrupted: Hvy. Mass Driver misfires. 16059_ System corrupted: Substantial component data lost. 16064_ Slug penetrates Y-54 Guardian. 16067_ Adv. Heat Sink destroyed. 16069_ Slug penetrates Y-54 Guardian. 16069_ Y-54 Guardian destroyed. 16070_ Acquired 44 matter. 16076_ System corrupted: Energy discharge (-56). 16088_ Imp. Heavy Treads destroyed. Map ----- +----------------------------------------------------+ | ???# ## ##%% #### #????????###]]????????????? | | ???" %= + #???????????###???????????? | | ???" = ####?????????????????????????? | | ???" #????????????????????????????? | | ???" #????????????????????????????? | | ???# ## ## ###????????????????????????????? | | ???? ?## ## ########### #???????????????? | | ??? #???????????????? | | ??? #????????????????????? | | ???# ###+#### #??????????????????+?? | | ???## ##""""###+##?# #??# #??????????+?????????? | | ????????????????????# #??# +????????????????????? | | ????????????????????# #??# #????????????????????? | | ????+??????????# #### #### #######??????????????? | | ???????????????# + + #????+?????????? | | ???????????????###### #### ##### #????????????+?? | | ?+??????????????????# #??# #???# #??????????????? | | ????????????????????# #??# #???# #??????????????? | | ????????????????????# #??# #???# #??????????????? | | ????????????????????#+#### #???# #??????????????? | | ???????????????????????? #???# #??????????????? | | ?????????????????????????# #####+######?????????? | | ?????????????????????????# #?????????? | | ?????????????????# ??????# #?????????? | | ?????????????????# %[#####Y######### < #?????????? | | ?????????????????# %+ @ #???????? #?????????? | | ?????????????????#% !#######?????????#"#?????????? | | ?????????????????# ???????????????????##?????????? | | ?????????????????????????????????????????????????? | | ?????????????????????????????????????????????????? | | ?????????????????????????????????????????????????? | | ?????????????????????????????????????????????????? | | ?????????????????????????????????????????????????? | | ?????????????????????????????????????????????????? | | ?????????????????????????????????????????????????? | | ?????????????????????????????????????????????????? | | ?????????????????????????????????????????????????? | | ?????????????????????????????????????????????????? | | ?????????????????????????????????????????????????? | | ?????????????????????????????????????????????????? | | ?????????????????????????????????????????????????? | | ?????????????????????????????????????????????????? | | ?????????????????????????????????????????????????? | | ?????????????????????????????????????????????????? | | ?????????????????????????????????????????????????? | | ?????????????????????????????????????????????????? | | ?????????????????????????????????????????????????? | | ?????????????????????????????????????????????????? | | ?????????????????????????????????????????????????? | | ?????????????????????????????????????????????????? | +----------------------------------------------------+ Best States ------------- Heat Dissipation 91 Energy Generation 25 Energy Capacity 315 Matter Stores 300 Matter Capacity 300 Sight Range 16 Terrain Scan Density 10 Armor Coverage 600 Resistance: KI 30 Utility Shielding 33 Phase Shifting 10 Evasion (%) 50 Targeting Accuracy 20 Target Analysis 9 Core Analysis 6 Armor Integrity Analysis 30 Recoil Reduction 4 Kinecelleration 50 Offensive Hacking 10 Defensive Hacking 10 Relay Coupler Types 2 Relay Coupler Value 40 Item Schematics ----------------- None Robot Schematics ------------------ None Fabricated ------------ Nothing Alien Tech Used ----------------- None Achievements -------------- None Challenges ------------ None Game ------ Seed NullPotentialMicrothruster Manual? 0 Play Time 01:44:44 Cumulative 517.7 hours Start 2023.03.29 @ 22:08:16 End 2023.03.29 @ 23:51:36 Sessions 1 Manual Loads 0 Difficulty Rogue Special Mode None Game No. 549 Rogue 549 Adventurer 0 Explorer 0 Win Type - Total 1 Types 1/0/0/0/0/0/0/0/0 Lore% 65 Gallery% 83 Achievement% 65 Wizard Run 0 Options --------- ASCII 0 Keyboard 0 Movement Mouse Keybinds 0 Fullscreen 2 Font 24/Smallcaps Map View 76x50 Tactical HUD 1 Map Filters NONE Filters NONE Steam 1 RUN: 13634919-c5b6-421f-a56a-1597efb38b9a